bitfinex/quotes_ETHUSD_20241204
["timestamp","ask_amount","ask_price","bid_price","bid_amount"]
[1733277994497,3.13004353,3670.9,3669.3,5.80600464]
[1733277994710,3.13004353,3670.9,3668.9,0.51792061]
[1733277994711,2.72457,3670.3,3668.9,3.08071464]
[1733277994860,3.13004353,3670.6,3669.1,2.72542]
[1733277995065,3.13004353,3670.6,3668.8,2.72563]
[1733277995271,0.08520604,3670.5,3668.8,2.72563]
[1733277995475,2.72474,3670.1,3668.8,2.72563]
[1733277995679,2.72459,3670.3,3668.5,3.08071464]
[1733277995886,2.72472,3670.1,3668.6,1.01669446]
[1733277996060,3.13004353,3670.6,3668.6,4.01468446]
[1733277996277,2.72461,3670.3,3668.6,1.28889446]
[1733277996480,3.13004353,3669.9,3669.0,2.72553]
[1733277996870,3.13004353,3669.9,3668.4,4.36026]
[1733277996871,3.13004353,3669.9,3668.8,2.72568]
[1733277997165,3.13004353,3669.9,3668.6,2.72578]
[1733277997379,3.13004353,3669.9,3668.7,2.72575]
[1733277997776,3.13004353,3669.9,3668.4,1.6343]
[1733277997974,3.13004353,3669.9,3668.5,3.27136464]
[1733277998895,5.85493353,3669.9,3668.7,2.72575]
[1733277999810,3.13004353,3669.9,3668.6,0.02725767]
[1733277999971,3.13004353,3669.9,3669.2,2.72534]
[1733278000168,3.13004353,3670.9,3668.9,3.08071464]
[1733278000454,3.18071464,3671.9,3668.7,0.49329223]
[1733278000455,3.13004353,3670.8,3669.3,4.69861464]
[1733278000573,3.13004353,3670.7,3670.2,2.7246]
[1733278002071,3.13004353,3670.7,3670.3,2.72456]
[1733278002404,3.13004353,3670.7,3669.8,2.99714]
[1733278003573,3.13004353,3670.7,3670.1,2.72466]
[1733278003774,3.13004353,3670.7,3669.8,0.2722]
[1733278004098,3.13004353,3670.7,3670.1,2.72471]
[1733278004409,3.13004353,3670.7,3670.2,2.72463]
[1733278005403,3.13004353,3670.6,3670.2,2.72463]
[1733278005612,3.13004353,3670.6,3669.9,0.33529146]
[1733278005817,3.13004353,3670.6,3670.0,0.36882061]
[1733278006107,3.13004353,3670.6,3670.1,2.7247]
[1733278007706,3.13004353,3670.6,3670.0,0.36882061]
[1733278007912,3.13004353,3670.6,3669.9,2.72485]
[1733278008273,3.13004353,3670.5,3669.9,2.72485]
[1733278008473,3.13004353,3670.5,3669.8,0.2722]
[1733278008711,3.13004353,3670.5,3669.9,2.72486]
[1733278009005,3.13004353,3670.5,3669.8,0.2722]
[1733278009520,3.13004353,3670.5,3669.9,2.72486]
[1733278009817,3.13004353,3670.5,3670.0,2.72479]
[1733278010576,3.13004353,3670.5,3669.9,0.299706]
[1733278010777,3.13004353,3670.5,3669.9,3.024566]
[1733278011209,3.13004353,3671.1,3669.9,3.024566]
[1733278011510,3.13004353,3671.1,3670.0,2.72479]
[1733278012281,2.72443,3670.5,3669.4,0.46986146]
[1733278012571,2.72443,3670.5,3669.2,2.72535]
[1733278012775,3.13004353,3670.4,3668.9,1.6666]
[1733278012975,5.85455353,3670.4,3668.9,1.6666]
[1733278013195,5.85455353,3670.4,3669.2,2.72538]
[1733278013605,3.13004353,3670.4,3669.2,2.72532]
[1733278013809,3.13004353,3670.4,3669.3,2.72531]
[1733278014312,3.13004353,3670.3,3669.7,2.72501]
[1733278015119,3.13004353,3670.3,3669.5,2.72515]
[1733278015411,3.13004353,3670.3,3669.9,2.72486]
[1733278015615,3.13004353,3670.3,3669.7,2.725]
[1733278016108,3.13004353,3670.3,3669.7,3.57808746]
[1733278016497,3.13004353,3670.3,3669.7,2.72501]
[1733278016811,3.13004353,3670.3,3669.2,2.72538]
[1733278017016,3.13004353,3670.3,3669.7,2.72494]
[1733278017406,3.13004353,3670.3,3669.5,3.08071464]
[1733278018505,3.13004353,3670.3,3669.9,2.72486]
[1733278019818,3.13004353,3670.3,3669.9,0.272486]
[1733278019979,3.13004353,3670.3,3669.5,3.08071464]
[1733278020182,3.13004353,3671.0,3669.8,2.72489]
[1733278020719,3.13004353,3671.0,3669.6,2.72508]
[1733278020880,3.13004353,3671.0,3669.2,1.6007]
[1733278020881,2.72434,3670.7,3668.8,4.38653]
[1733278021084,2.72434,3670.7,3669.5,2.72516]
[1733278021424,3.13004353,3670.9,3669.5,2.72513]
[1733278022595,2.72428,3670.7,3669.5,3.30571446]
[1733278023229,3.13004353,3670.9,3669.2,3.08071464]
[1733278023546,5.85423353,3670.9,3669.3,2.7253]
[1733278023746,3.13004353,3670.0,3668.5,0.19065]
[1733278023952,3.13004353,3670.0,3668.9,2.7256]
[1733278024610,3.13004353,3670.0,3668.5,2.7259]
[1733278024819,3.13004353,3670.0,3668.6,3.08071464]
[1733278025133,3.18071464,3671.4,3668.0,2.72621]
[1733278025134,3.13004353,3669.8,3668.0,2.72621]
[1733278025351,0.2,3670.5,3667.0,3.08071464]
[1733278025352,6.13004353,3669.6,3667.0,3.08071464]
[1733278025531,3.13004353,3668.5,3667.3,2.7268]
[1733278025864,3.13004353,3668.5,3667.1,0.30807146]
[1733278026013,3.09390394,3669.5,3667.1,3.03495146]
[1733278026014,5.85603353,3668.4,3667.1,3.03495146]
[1733278026510,3.13004353,3668.3,3666.7,4.36841]
[1733278026705,2.72638,3667.9,3666.5,2.72737]
[1733278026958,5.85619353,3668.2,3666.3,2.72754]
[1733278027247,3.13004353,3667.8,3665.8,2.7279]
[1733278027471,3.13004353,3667.1,3665.9,2.72783]
[1733278027610,3.13004353,3667.1,3665.6,0.15208]
[1733278027815,3.13004353,3667.1,3665.1,3.08071464]
[1733278028010,3.13004353,3667.1,3665.2,2.72836]
[1733278028324,5.85701353,3667.1,3665.7,2.72795]
[1733278028533,3.13004353,3667.1,3666.0,2.72774]
[1733278028744,3.13004353,3667.1,3665.7,0.272795]
[1733278028947,3.13004353,3667.1,3665.7,2.72797]
[1733278029153,3.13004353,3667.1,3665.4,2.72817]
[1733278029367,2.72718,3666.8,3665.4,2.72817]
[1733278029516,2.7268,3667.3,3664.8,1.6449]
[1733278029517,3.13004353,3667.0,3664.8,4.72561464]
[1733278029718,3.0,3666.8,3665.1,2.72841]
[1733278030247,2.72737,3666.6,3665.1,2.72841]
[1733278030427,3.13004353,3666.5,3665.1,2.72841]
[1733278030630,3.13004353,3666.5,3665.2,2.72835]
[1733278031055,3.13004353,3666.5,3665.2,2.72831]
[1733278031265,5.85744353,3666.5,3665.0,2.72849]
[1733278031432,5.85744353,3666.5,3664.4,7.34713464]
[1733278031433,5.85744353,3666.5,3664.5,0.18982772]
[1733278031748,5.85744353,3666.5,3665.1,2.72841]
[1733278032159,3.13004353,3666.5,3665.2,3.08071464]
[1733278032446,3.0,3667.4,3664.7,3.08071464]
[1733278032447,3.13004353,3666.4,3664.7,3.08071464]
[1733278032655,3.13004353,3666.4,3665.0,2.7285]
[1733278033163,3.13004353,3666.4,3665.1,2.72841]
[1733278033460,5.85752353,3666.4,3665.0,0.58092146]
[1733278033647,5.85752353,3666.4,3665.1,2.72842]
[1733278034223,3.13004353,3666.4,3665.3,2.72827]
[1733278034418,3.13004353,3666.4,3665.0,3.30941146]
[1733278034617,3.13004353,3666.4,3665.1,3.05936115]
[1733278034846,3.13004353,3666.4,3665.2,2.72832]
[1733278035013,3.13004353,3666.4,3665.1,0.33094115]
[1733278035344,3.13004353,3666.4,3665.1,2.72842]
[1733278035728,3.13004353,3666.4,3665.0,0.58092146]
[1733278035961,3.13004353,3666.4,3665.3,2.72827]
[1733278037621,3.13004353,3666.4,3665.9,2.72783]
[1733278037825,3.13004353,3667.2,3666.2,2.72759]
[1733278038032,3.13004353,3667.1,3666.3,2.72753]
[1733278038237,3.13004353,3667.1,3666.6,2.72731]
[1733278038731,3.13004353,3667.0,3666.3,0.272753]
[1733278038935,3.13004353,3668.2,3666.3,3.08071464]
[1733278039318,3.13004353,3668.2,3666.7,2.72724]
[1733278039556,3.13004353,3668.2,3667.2,2.72685]
[1733278039955,3.13004353,3668.2,3666.7,2.72724]
[1733278039956,3.13004353,3668.2,3667.5,2.72664]
[1733278040165,3.13004353,3667.8,3667.1,3.08071464]
[1733278040456,3.13004353,3669.0,3667.7,2.72649]
[1733278040959,3.13004353,3669.0,3667.2,0.30807146]
[1733278041171,3.13004353,3669.0,3667.7,2.72649]
[1733278041459,3.13004353,3669.0,3667.8,2.72641]
[1733278041622,3.13004353,3669.0,3666.7,3.08071464]
[1733278041623,3.13004353,3668.8,3668.0,2.72627]
[1733278041820,3.08071464,3669.4,3666.7,3.08071464]
[1733278041821,3.13004353,3668.6,3667.7,2.72645]
[1733278042762,3.13004353,3668.4,3667.8,2.72641]
[1733278043172,3.13004353,3668.0,3666.5,2.72732]
[1733278043342,2.72644,3667.8,3666.0,2.72776]
[1733278043668,3.13004353,3668.0,3666.5,2.72737]
[1733278043669,5.85636353,3668.0,3666.5,2.72737]
[1733278043869,3.13004353,3668.0,3666.5,2.72737]
[1733278044233,2.72644,3667.8,3666.4,2.72745]
[1733278044628,3.13004353,3668.0,3666.2,2.72761]
[1733278044855,3.13004353,3667.9,3666.3,3.3003136]
[1733278045054,3.13004353,3667.8,3667.5,2.72664]
[1733278045267,3.13004353,3667.7,3667.5,2.7266]
[1733278045672,3.13004353,3667.2,3664.9,1.5821]
[1733278045969,3.28071464,3668.1,3665.1,2.72843]
[1733278045970,3.13004353,3667.1,3665.1,2.72843]
[1733278046175,2.72712,3666.9,3665.5,2.72813]
[1733278046464,3.13004353,3667.1,3665.5,0.272813]
[1733278046664,3.13004353,3666.9,3665.0,0.15821]
[1733278046871,3.13004353,3666.9,3665.0,0.18549226]
[1733278047077,3.13004353,3666.9,3665.0,0.15821]
[1733278047256,3.13004353,3666.9,3665.2,3.08071464]
[1733278047571,3.13004353,3666.9,3665.3,0.32389246]
[1733278047733,3.13004353,3666.9,3665.3,3.05215246]
[1733278047933,3.13004353,3666.9,3665.3,0.32389246]
[1733278048175,3.13004353,3666.9,3665.5,2.72807]
[1733278048467,3.13004353,3666.6,3665.6,3.08071464]
[1733278048677,3.13004353,3667.9,3666.5,2.72739]
[1733278048977,3.13004353,3667.7,3666.8,2.72717]
[1733278049472,3.13004353,3667.5,3666.7,2.72722]
[1733278049638,3.13004353,3667.4,3666.8,2.72712]
[1733278049839,3.13004353,3667.3,3666.1,2.72769]
[1733278050026,3.13004353,3667.3,3666.8,2.7271]
[1733278050236,3.13004353,3667.2,3666.9,2.72708]
[1733278050925,3.13004353,3667.2,3667.0,2.72701]
[1733278051132,3.13004353,3668.2,3667.4,2.7267]
[1733278051381,3.13004353,3668.2,3667.5,2.72663]
[1733278051535,3.13004353,3668.1,3667.5,2.72663]
[1733278051729,3.13004353,3668.0,3667.6,2.72656]
[1733278051940,3.13004353,3667.9,3666.6,0.02726786]
[1733278052139,3.13004353,3667.8,3667.6,2.72656]
[1733278056280,3.13004353,3667.7,3667.6,2.72656]
[1733278062547,3.13004353,3667.6,3667.4,2.72672]
[1733278062769,3.13004353,3667.5,3667.4,2.72672]
[1733278065988,3.13004353,3667.5,3667.4,2.999392]
[1733278067163,3.13004353,3667.4,3666.9,2.72706]
[1733278067396,3.13004353,3667.4,3666.1,1.513]
[1733278067600,3.13004353,3667.4,3666.7,2.72722]
[1733278067890,3.13004353,3667.4,3666.8,2.72716]
[1733278069395,3.13004353,3667.4,3666.4,2.7274]
[1733278069615,3.13004353,3667.3,3665.9,2.72777]
[1733278069785,3.13004353,3667.2,3665.4,2.72816]
[1733278070093,3.13004353,3667.2,3665.5,0.74320746]
[1733278070299,3.13004353,3667.2,3665.9,2.72781]
[1733278070503,3.13004353,3667.1,3666.1,2.72768]
[1733278070984,3.13004353,3667.1,3665.8,2.72784]
[1733278071362,3.13004353,3667.1,3665.9,2.72783]
[1733278071562,3.13004353,3667.1,3665.5,0.74320746]
[1733278071803,3.13004353,3667.1,3665.8,2.72791]
[1733278072007,3.13004353,3667.1,3667.0,2.72702]
[1733278072216,3.13004353,3667.8,3667.0,2.72702]
[1733278072504,3.08071464,3668.5,3666.1,4.27027]
[1733278072505,3.13004353,3667.4,3666.3,2.72754]
[1733278072713,5.80662464,3668.5,3666.3,2.72754]
[1733278072714,3.13004353,3667.3,3667.2,2.72686]
[1733278072871,3.13004353,3667.3,3666.4,0.427014]
[1733278072872,3.13004353,3668.2,3666.4,3.50772864]
[1733278073072,3.13004353,3668.1,3667.4,2.72668]
[1733278074516,3.13004353,3668.1,3667.1,2.7269]
[1733278075295,3.13004353,3668.1,3667.1,2.72692]
[1733278075574,3.13004353,3668.0,3666.4,5.04512864]
[1733278075770,5.80632464,3668.9,3664.5,1.5374]
[1733278075771,3.13004353,3666.7,3664.5,1.5374]
[1733278075970,3.13004353,3667.1,3665.7,2.72798]
[1733278076280,3.0,3667.8,3665.7,2.72798]
[1733278076281,3.13004353,3667.0,3665.7,0.272798]
[1733278076485,3.13004353,3667.0,3665.9,2.7278]
[1733278076682,3.13004353,3667.0,3665.7,0.272798]
[1733278076890,3.13004353,3667.0,3666.0,2.72773]
[1733278077199,3.13004353,3667.0,3666.1,2.72768]
[1733278077912,3.13004353,3667.0,3666.2,2.7276]
[1733278078087,3.13004353,3667.0,3665.4,3.00041]
[1733278078411,3.13004353,3667.0,3666.2,2.72756]
[1733278078624,3.13004353,3667.0,3666.2,2.7276]
[1733278080407,3.13004353,3666.9,3665.5,0.76185246]
[1733278080621,3.13004353,3666.9,3666.1,2.72769]
[1733278080975,3.13004353,3666.9,3666.2,2.7276]
[1733278081314,3.13004353,3666.9,3666.3,2.72751]
[1733278081870,3.13004353,3666.9,3665.7,0.37621125]
[1733278082075,3.13004353,3667.7,3665.9,2.72784]
[1733278082509,3.13004353,3667.4,3666.1,3.08071464]
[1733278082826,2.72613,3668.2,3667.0,2.72702]
[1733278082827,3.13004353,3667.3,3667.0,2.72702]
[1733278082971,3.13004353,3667.1,3666.3,5.45508]
[1733278083172,3.13004353,3667.1,3667.0,2.72702]
[1733278085993,3.13004353,3667.1,3666.2,1.624]
[1733278086222,3.13004353,3666.9,3665.5,2.34265246]
[1733278086384,2.72717,3666.8,3665.6,2.72806]
[1733278086957,2.72725,3666.7,3665.3,2.72823]
[1733278087093,2.72725,3666.7,3665.4,2.7282]
[1733278087427,2.72725,3666.7,3665.3,0.703748]
[1733278087428,3.13004353,3666.8,3665.3,0.703748]
[1733278087628,2.72747,3666.4,3665.1,2.72836]
[1733278087996,3.07901421,3667.5,3664.4,3.08071464]
[1733278087997,3.13004353,3666.3,3664.4,1.5729]
[1733278088191,2.72799,3665.7,3664.4,2.72892]
[1733278088419,3.13004353,3666.2,3664.3,0.2722]
[1733278088420,3.13004353,3666.2,3664.5,2.72888]
[1733278088694,3.13004353,3666.2,3664.6,2.7288]
[1733278089000,3.13004353,3666.2,3664.1,0.2722]
[1733278089204,5.85799353,3665.8,3664.3,0.2722]
[1733278089412,2.72806,3665.6,3664.3,0.2722]
[1733278089616,2.72844,3665.1,3664.3,0.2722]
[1733278089816,2.72844,3665.1,3663.9,0.1608406]
[1733278090253,3.13004353,3664.8,3663.9,0.1608406]
[1733278090405,3.13004353,3664.4,3663.9,0.1608406]
[1733278091205,3.08071464,3665.2,3663.9,0.1608406]
[1733278091206,3.13004353,3664.3,3663.9,0.1608406]
[1733278091605,2.96920293,3663.9,3663.1,0.75]
[1733278091806,2.96920293,3663.8,3663.1,0.75]
[1733278095333,2.96920293,3663.7,3663.1,0.75]
[1733278095539,2.96920293,3663.7,3663.1,3.47991]
[1733278096329,2.96920293,3663.5,3663.1,0.75]
[1733278096662,2.72925,3664.1,3663.1,0.75]
[1733278096663,2.96920293,3663.4,3663.1,0.75]
[1733278096845,2.96920293,3663.3,3663.1,0.75]
[1733278097163,2.96920293,3663.2,3663.1,0.75]
[1733278097314,2.21920293,3662.8,3661.7,2.73095]
[1733278097517,2.21920293,3662.8,3661.1,2.73141]
[1733278097716,2.21920293,3662.8,3661.6,2.73102]
[1733278098346,2.21920293,3662.5,3660.8,1.6115]
[1733278098760,2.21920293,3662.5,3661.2,2.7313]
[1733278099268,2.21920293,3662.5,3660.6,5.81247464]
[1733278099495,4.94959293,3662.5,3660.9,2.73152]
[1733278099759,2.21920293,3662.5,3660.7,0.74239746]
[1733278099967,2.21920293,3662.5,3661.4,2.73118]
[1733278100267,3.13784795,3663.4,3660.7,0.74239746]
[1733278100268,2.21920293,3662.3,3661.0,3.08071464]
[1733278100420,2.21920293,3662.2,3661.6,2.73102]
[1733278101718,2.21920293,3662.2,3660.6,3.08071464]
[1733278102143,2.21920293,3662.2,3661.7,2.7309]
[1733278103355,2.73001,3663.0,3660.4,1.6115]
[1733278103356,2.21920293,3662.0,3660.4,1.6115]
[1733278103556,2.21920293,3661.9,3660.6,2.73178]
[1733278103865,2.21920293,3661.8,3660.6,0.273178]
[1733278104080,2.21920293,3661.6,3661.4,2.73118]
[1733278105541,2.21920293,3662.5,3661.5,2.73108]
[1733278105746,2.21920293,3662.0,3661.7,2.73094]
[1733278105962,3.50038092,3663.1,3661.8,2.73089]
[1733278105963,2.21920293,3661.9,3661.8,2.73089]
[1733278107046,2.21920293,3661.9,3661.3,2.73121]
[1733278107047,2.21920293,3662.8,3661.3,3.08071464]
[1733278107250,2.21920293,3662.8,3661.4,2.73119]
[1733278107579,2.21920293,3662.5,3660.2,0.1608406]
[1733278107747,2.73055,3662.3,3661.0,2.73148]
[1733278107943,2.73065,3662.2,3660.7,2.7317]
[1733278108147,2.21920293,3662.0,3660.3,2.73201]
[1733278108385,2.21920293,3662.0,3660.9,2.73152]
[1733278108586,4.0,3661.8,3660.2,0.1608406]
[1733278108774,2.73112,3661.5,3660.2,0.1608406]
[1733278108975,5.21920293,3661.7,3660.2,0.1608406]
[1733278109180,2.7312,3661.4,3660.2,0.1608406]
[1733278109716,2.21920293,3661.2,3660.2,0.1608406]
[1733278110214,4.0,3661.3,3660.2,0.1608406]
[1733278110215,2.73158,3660.9,3660.2,0.1608406]
[1733278110410,2.21920293,3660.8,3660.2,0.1608406]
[1733278110779,2.21920293,3660.7,3660.2,0.1608406]
[1733278111309,6.05836233,3660.5,3658.4,4.60181464]
[1733278111510,2.73201,3660.3,3658.9,2.73301]
[1733278111720,6.05836233,3660.5,3658.6,2.73328]
[1733278112021,2.05836233,3660.4,3659.4,2.73268]
[1733278112389,2.05836233,3660.4,3658.8,2.73307]
[1733278112390,6.05836233,3660.2,3659.6,2.73252]
[1733278112907,2.05836233,3660.2,3659.7,2.73245]
[1733278113114,2.05836233,3660.2,3659.8,2.73238]
[1733278113483,2.05836233,3660.2,3658.9,0.273307]
[1733278113697,2.05836233,3660.2,3659.6,2.7325]
[1733278113910,2.05836233,3660.2,3659.6,2.73248]
[1733278114406,2.05836233,3660.1,3659.3,2.73275]
[1733278114980,2.05836233,3660.1,3658.4,7.33522464]
[1733278115186,2.05836233,3660.1,3659.3,2.7327]
[1733278115414,2.05836233,3660.1,3659.5,2.73259]
[1733278115571,2.05836233,3660.1,3658.7,2.73318]
[1733278115773,3.08071464,3660.7,3658.8,2.73313]
[1733278115774,2.05836233,3660.0,3658.8,2.73313]
[1733278115990,2.05836233,3660.0,3658.8,3.43602225]
[1733278116211,2.73161,3660.9,3658.8,3.43602225]
[1733278116212,2.05836233,3659.9,3659.6,2.73248]
[1733278116375,2.05836233,3659.8,3658.8,3.43602225]
[1733278116574,2.05836233,3659.8,3659.1,2.73289]
[1733278116804,2.05836233,3659.8,3658.8,0.35530761]
[1733278116805,2.05836233,3659.8,3659.2,2.73281]
[1733278117010,2.05836233,3659.8,3658.4,1.5211]
[1733278117226,2.05836233,3659.8,3658.5,3.08071464]
[1733278117401,2.05836233,3659.7,3659.6,2.73252]
[1733278118117,2.05836233,3659.7,3659.0,5.81366464]
[1733278118304,2.05836233,3659.7,3659.5,2.73259]
[1733278119191,2.05836233,3659.7,3658.6,3.57694902]
[1733278119395,2.73187,3660.5,3658.8,2.73313]
[1733278119619,2.05836233,3660.4,3658.4,1.5211]
[1733278119817,2.73221,3660.1,3658.7,2.73319]
[1733278119990,2.05836233,3659.5,3658.4,1.5211]
[1733278120327,2.05836233,3659.5,3659.3,2.73276]
[1733278121296,2.05836233,3659.5,3659.0,2.73294]
[1733278121938,2.05836233,3659.5,3658.5,2.73329]
[1733278122143,2.05836233,3659.5,3658.9,2.73303]
[1733278122506,2.05836233,3659.5,3659.0,2.73296]
[1733278123041,2.05836233,3659.5,3658.6,2.73328]
[1733278123197,2.05836233,3659.4,3657.9,1.5942]
[1733278123391,2.05836233,3659.2,3657.9,1.5942]
[1733278123632,2.05836233,3659.0,3658.4,2.73343]
[1733278123947,2.73248,3659.7,3658.4,2.73343]
[1733278123948,2.05836233,3659.6,3658.4,2.73343]
[1733278124246,2.05836233,3659.4,3657.9,1.5942]
[1733278124398,2.05836233,3659.1,3657.9,1.5942]
[1733278124598,2.05836233,3659.6,3657.4,5.81488464]
[1733278124793,2.73241,3659.8,3657.8,2.73387]
[1733278124794,2.05836233,3659.1,3657.8,2.73387]
[1733278125042,2.73241,3659.8,3657.8,2.73387]
[1733278125043,2.05836233,3658.8,3657.8,2.73387]
[1733278125231,2.05836233,3658.6,3657.5,2.7341]
[1733278125538,2.05836233,3658.5,3658.0,2.73368]
[1733278125758,2.05836233,3658.5,3658.3,2.7335]
[1733278126264,2.05836233,3658.5,3657.5,2.7341]
[1733278126265,2.05836233,3658.3,3656.8,2.73463]
[1733278126437,2.05836233,3658.3,3657.3,2.73422]
[1733278126740,4.0,3658.2,3657.5,2.7341]
[1733278127249,2.05836233,3658.0,3657.2,2.73425]
[1733278127400,2.05836233,3658.0,3656.7,3.08071464]
[1733278127599,2.05836233,3658.0,3657.4,2.73417]
[1733278127843,2.05836233,3658.0,3657.5,2.73409]
[1733278128008,2.05836233,3658.0,3657.3,2.73423]
[1733278128202,2.05836233,3658.0,3656.5,1.5806]
[1733278128203,2.05836233,3657.9,3656.5,1.5806]
[1733278128397,2.05836233,3657.5,3656.5,1.5806]
[1733278128648,2.05836233,3658.1,3656.8,2.73462]
[1733278128940,2.05836233,3658.1,3656.5,1.79029406]
[1733278128941,2.05836233,3657.6,3656.9,2.73453]
[1733278129098,2.05836233,3657.4,3656.5,1.5806]
[1733278129301,2.05836233,3657.9,3656.5,1.5806]
[1733278129563,2.05836233,3657.8,3656.9,2.73454]
[1733278129838,2.05836233,3657.6,3656.9,2.73454]
[1733278130053,2.05836233,3657.5,3656.9,0.273454]
[1733278130204,2.05836233,3657.5,3657.2,2.73431]
[1733278131049,2.05836233,3658.0,3657.2,2.73427]
[1733278131208,2.05836233,3657.9,3657.4,2.73417]
[1733278131409,2.05836233,3658.5,3657.1,2.73433]
[1733278131656,4.79173233,3658.5,3657.2,2.73431]
[1733278131808,4.79173233,3658.5,3657.2,3.007741]
[1733278132219,2.05836233,3658.4,3657.4,2.73418]
[1733278132423,3.1511314,3659.4,3656.5,1.5806]
[1733278132424,2.05836233,3658.3,3657.0,2.73448]
[1733278132623,2.05836233,3658.3,3657.1,2.73439]
[1733278132956,2.05836233,3658.3,3657.2,2.73432]
[1733278133167,0.4184014,3659.4,3657.0,0.273448]
[1733278133168,2.05836233,3658.2,3657.3,2.73423]
[1733278133380,2.05836233,3658.2,3657.2,2.73432]
[1733278133518,2.05836233,3658.2,3657.2,2.7343]
[1733278134059,2.05836233,3657.9,3657.2,0.27343]
[1733278134260,2.05836233,3657.9,3657.6,2.73402]
[1733278134449,2.05836233,3658.8,3656.7,2.7347]
[1733278134634,2.05836233,3658.4,3656.7,2.7347]
[1733278134959,2.05836233,3658.4,3656.5,1.5806]
[1733278134960,2.05836233,3658.3,3657.6,2.73399]
[1733278135264,2.05836233,3657.7,3656.7,2.7347]
[1733278135558,3.0,3659.3,3656.7,2.7347]
[1733278135559,2.05836233,3658.4,3656.9,2.73449]
[1733278135763,2.05836233,3658.3,3657.4,2.73416]
[1733278135983,2.05836233,3657.9,3656.9,2.73449]
[1733278136154,2.05836233,3657.9,3657.0,0.273449]
[1733278136682,2.05836233,3657.9,3657.5,2.73406]
[1733278136881,4.79164233,3658.6,3656.5,1.5806]
[1733278137085,2.05836233,3658.3,3656.7,2.7347]
[1733278137381,2.05836233,3658.1,3657.5,2.7341]
[1733278137537,2.05836233,3657.8,3657.3,2.73422]
[1733278137737,2.05836233,3657.8,3656.9,0.2731]
[1733278137954,2.05836233,3657.8,3657.5,2.7341]
[1733278138239,2.05836233,3658.4,3657.8,2.73386]
[1733278138471,2.05836233,3658.1,3657.8,2.73386]
[1733278138792,2.05836233,3658.1,3657.7,2.73392]
[1733278138966,2.05836233,3658.1,3657.8,2.73384]
[1733278139165,2.05836233,3658.1,3657.6,2.734]
[1733278139385,2.05836233,3658.1,3657.8,2.73386]
[1733278139586,2.05836233,3658.9,3657.3,0.439399]
[1733278139825,2.05836233,3658.8,3657.2,1.960237]
[1733278139975,2.05836233,3658.6,3657.2,1.9329]
[1733278140176,2.05836233,3658.6,3657.3,2.73425]
[1733278140421,2.05836233,3658.6,3658.2,2.73358]
[1733278140783,2.05836233,3658.6,3658.1,2.73364]
[1733278140974,2.05836233,3658.6,3657.4,2.73413]
[1733278141316,4.0,3658.1,3656.6,2.90889406]
[1733278141523,2.05836233,3657.9,3656.4,0.1608406]
[1733278141879,2.05836233,3657.9,3656.7,2.73464]
[1733278142074,2.05836233,3657.9,3656.4,1.7548406]
[1733278142281,4.0,3657.7,3656.4,0.1608406]
[1733278143020,4.0,3657.7,3657.0,2.73446]
[1733278143184,4.0,3657.7,3656.5,1.594]
[1733278143381,4.0,3657.7,3656.4,2.8957106]
[1733278143382,2.05836233,3657.6,3656.4,0.1608406]
[1733278143619,4.0,3657.5,3656.4,0.1608406]
[1733278144078,6.05836233,3657.5,3656.4,0.1608406]
[1733278144481,6.05836233,3657.5,3656.5,2.73483]
[1733278144684,6.05836233,3657.5,3656.6,0.44826706]
[1733278144910,6.05836233,3657.5,3656.4,0.1608406]
[1733278145943,2.05836233,3657.4,3656.4,0.1608406]
[1733278146327,2.05836233,3657.3,3656.4,0.1608406]
[1733278146527,3.0,3657.8,3656.4,0.1608406]
[1733278146528,4.0,3657.1,3656.4,0.1608406]
[1733278147020,4.0,3657.1,3656.4,1.7830406]
[1733278147223,6.05836233,3657.1,3656.4,0.1608406]
[1733278148445,2.05836233,3656.7,3656.4,0.1608406]
[1733278148645,2.05836233,3656.6,3656.4,0.1608406]
[1733278148788,6.05836233,3656.5,3656.4,0.1608406]
[1733278149427,1.89752173,3656.2,3654.3,1.42707265]
[1733278149626,4.05340092,3656.5,3654.3,1.42707265]
[1733278149627,1.89752173,3655.5,3654.4,0.30046726]
[1733278149937,1.89752173,3655.3,3654.4,0.30046726]
[1733278150136,1.89752173,3656.0,3654.4,0.30046726]
[1733278150297,1.89752173,3656.4,3655.2,2.73577]
[1733278150628,1.89752173,3656.4,3655.0,2.73596]
[1733278150832,1.89752173,3656.4,3655.1,0.273596]
[1733278151001,1.89752173,3656.4,3654.6,1.6429]
[1733278151202,1.89752173,3656.3,3654.4,0.30046726]
[1733278151403,1.89752173,3656.3,3654.5,2.73634]
[1733278151608,1.89752173,3656.3,3654.3,1.42707265]
[1733278151609,2.73508,3656.2,3654.3,1.42707265]
[1733278151832,1.89752173,3656.0,3654.3,2.00772991]
[1733278152143,4.0,3655.2,3654.3,1.42707265]
[1733278152496,1.89752173,3655.1,3654.3,1.42707265]
[1733278152690,1.89752173,3655.0,3654.3,1.42707265]
[1733278152931,1.89752173,3654.5,3654.3,1.42707265]
[1733278153233,4.0,3654.4,3654.3,1.42707265]
[1733278153439,4.0,3654.4,3654.3,1.56977992]
[1733278153737,1.89752173,3656.0,3654.3,1.56977992]
[1733278154092,1.89752173,3656.3,3655.1,2.73589]
[1733278154292,4.0,3655.2,3655.1,3.009479]
[1733278154530,0.05340092,3656.5,3655.2,1.5078]
[1733278154774,0.05340092,3656.5,3655.1,0.273589]
[1733278154952,0.05340092,3656.5,3655.3,2.73572]
[1733278155094,0.05340092,3656.5,3654.3,1.92358013]
[1733278155095,1.89752173,3654.2,3653.5,1.31445674]
[1733278155298,0.2,3654.8,3651.5,7.47160476]
[1733278155299,2.73647,3654.4,3653.4,2.06473625]
[1733278155602,3.0,3654.2,3653.4,1.75516107]
[1733278155809,3.2,3654.2,3653.4,0.55568228]
[1733278156033,2.73686,3653.9,3653.4,0.55568228]
[1733278156238,8.81342084,3654.1,3653.4,0.55568228]
[1733278156731,0.05344056,3653.8,3653.4,0.55568228]
[1733278157048,4.0,3653.6,3653.4,0.55568228]
[1733278157334,4.0,3653.6,3651.5,1.5078]
[1733278157335,2.73853,3651.6,3649.4,1.3335138]
[1733278157638,2.73853,3651.6,3648.6,2.74076]
[1733278157639,3.83140019,3651.5,3648.6,2.74076]
[1733278157791,3.0,3651.1,3648.5,1.6402]
[1733278157991,0.57894508,3651.0,3649.0,2.9012906]
[1733278158292,0.57894508,3651.0,3650.0,59.59088436]